bitfinex/quotes_BTCUSD_20240828
["timestamp","ask_amount","ask_price","bid_price","bid_amount"]
[1724834847502,0.084698,59323.0,59322.0,1.96173456]
[1724834847748,0.084698,59323.0,59322.0,2.10903456]
[1724834848005,0.084698,59323.0,59322.0,2.44617756]
[1724834848235,0.084698,59323.0,59322.0,2.10903456]
[1724834848472,0.084698,59323.0,59322.0,2.09503456]
[1724834849623,0.084698,59323.0,59322.0,2.08103456]
[1724834849866,0.084698,59323.0,59322.0,2.09503456]
[1724834850517,0.084698,59323.0,59322.0,1.94773456]
[1724834850995,0.161898,59323.0,59322.0,1.631143]
[1724834851215,0.161898,59323.0,59322.0,1.294]
[1724834851431,0.226298,59323.0,59322.0,1.194]
[1724834851653,0.226298,59323.0,59322.0,1.208]
[1724834852100,0.226298,59323.0,59322.0,1.194]
[1724834852578,0.226298,59323.0,59322.0,1.208]
[1724834854875,0.222498,59323.0,59322.0,1.208]
[1724834856249,0.142418,59323.0,59322.0,1.208]
[1724834858038,0.142418,59323.0,59322.0,1.194]
[1724834858324,0.142418,59323.0,59322.0,1.18]
[1724834858752,0.142418,59323.0,59322.0,1.208]
[1724834860639,0.158118,59323.0,59322.0,1.208]
[1724834860902,0.158118,59323.0,59322.0,1.50357207]
[1724834860903,0.080918,59323.0,59322.0,1.50357207]
[1724834861380,0.080918,59323.0,59322.0,1.84071507]
[1724834863936,0.080918,59323.0,59322.0,1.94071507]
[1724834866605,0.080918,59323.0,59322.0,2.35505807]
[1724834867551,0.080918,59323.0,59322.0,2.34105807]
[1724834867781,0.080918,59323.0,59322.0,2.00391507]
[1724834868222,0.080918,59323.0,59322.0,2.35505807]
[1724834868687,0.080918,59323.0,59322.0,2.01791507]
[1724834869790,0.080918,59323.0,59322.0,2.06748044]
[1724834870918,0.080918,59323.0,59322.0,2.01791507]
[1724834872311,0.080918,59323.0,59322.0,1.99028044]
[1724834873022,0.080918,59323.0,59322.0,1.94071507]
[1724834877189,0.080918,59323.0,59322.0,1.99032838]
[1724834878125,0.080918,59323.0,59322.0,2.05790438]
[1724834878566,0.080918,59323.0,59322.0,2.00829107]
[1724834878801,0.080918,59323.0,59322.0,1.67114807]
[1724834879013,0.080918,59323.0,59322.0,1.35763896]
[1724834879247,0.080918,59323.0,59322.0,1.308]
[1724834879933,0.159918,59323.0,59322.0,1.308]
[1724834880608,0.159918,59323.0,59322.0,1.194]
[1724834880825,0.159918,59323.0,59322.0,1.208]
[1724834881043,0.159918,59323.0,59322.0,1.194]
[1724834881891,0.159918,59323.0,59322.0,1.208]
[1724834884516,0.18634936,59323.0,59322.0,1.208]
[1724834884971,0.18634936,59323.0,59322.0,1.2088987]
[1724834888136,0.18634936,59323.0,59322.0,1.32695446]
[1724834889251,0.10734936,59323.0,59322.0,1.32695446]
[1724834889460,0.080918,59323.0,59322.0,1.66409746]
[1724834889675,0.080918,59323.0,59322.0,1.71373665]
[1724834889893,0.080918,59323.0,59322.0,1.37659365]
[1724834891486,0.080918,59323.0,59322.0,1.71373665]
[1724834891953,0.080918,59323.0,59322.0,1.37659365]
[1724834892167,0.080918,59323.0,59322.0,1.32695446]
[1724834892613,0.10734931,59323.0,59322.0,1.32695446]
[1724834892795,0.18684931,59323.0,59322.0,1.3766116]
[1724834893944,0.24914931,59323.0,59322.0,0.92141284]
[1724834894185,0.24914931,59323.0,59322.0,0.8717557]
[1724834894391,0.24914931,59323.0,59322.0,1.2088987]
[1724834894607,0.24914931,59323.0,59322.0,1.32695446]
[1724834895064,0.24914931,59323.0,59322.0,0.1974697]
[1724834895505,0.24914931,59323.0,59322.0,0.5346127]
[1724834895506,0.222718,59323.0,59322.0,0.5346127]
[1724834895700,0.23160483,59323.0,59322.0,0.5346127]
[1724834896869,0.222718,59323.0,59322.0,0.5346127]
[1724834897554,0.21159973,59323.0,59322.0,0.5346127]
[1724834897983,0.21159973,59323.0,59322.0,0.1974697]
[1724834898203,0.21159973,59323.0,59322.0,0.5346127]
[1724834898846,0.23803267,59323.0,59322.0,0.5346127]
[1724834899062,0.34568267,59323.0,59322.0,0.0288987]
[1724834899283,0.80087543,59323.0,59322.0,0.0288987]
[1724834900186,0.80087543,59323.0,59322.0,0.0008987]
[1724834900400,0.80087543,59323.0,59322.0,0.0078987]
[1724834900614,0.80087543,59323.0,59322.0,0.0138987]
[1724834900848,0.80087543,59323.0,59322.0,0.0068987]
[1724834901269,0.80087543,59323.0,59322.0,0.0138987]
[1724834901475,1.13801243,59323.0,59322.0,0.0138987]
[1724834901688,0.80087543,59323.0,59322.0,0.0138987]
[1724834901920,1.13801243,59323.0,59322.0,0.0138987]
[1724834903328,1.19891243,59323.0,59322.0,0.0138987]
[1724834903741,1.53604943,59323.0,59322.0,0.0138987]
[1724834903956,1.19891243,59323.0,59322.0,0.0138987]
[1724834904383,1.19891243,59323.0,59322.0,0.0008987]
[1724834904593,1.19891243,59323.0,59322.0,0.0028987]
[1724834908649,1.19972943,59323.0,59322.0,0.0028987]
[1724834909499,1.70543943,59323.0,59322.0,0.0028987]
[1724834909709,1.67175941,59323.0,59322.0,0.0028987]
[1724834909918,2.00889641,59323.0,59322.0,0.0028987]
[1724834910799,2.10889641,59323.0,59322.0,0.0028987]
[1724834911066,2.11389641,59323.0,59322.0,0.0028987]
[1724834912857,2.11689641,59323.0,59322.0,0.0018987]
[1724834913066,2.11689641,59323.0,59322.0,0.0028987]
[1724834913067,2.12089641,59323.0,59322.0,0.0028987]
[1724834915024,2.48103341,59323.0,59322.0,0.0028987]
[1724834915242,2.31244805,59323.0,59322.0,0.0028987]
[1724834915665,2.64958505,59323.0,59322.0,0.0028987]
[1724834915881,2.31244805,59323.0,59322.0,0.0028987]
[1724834917163,2.64958505,59323.0,59322.0,0.0028987]
[1724834918895,2.31244805,59323.0,59322.0,0.0028987]
[1724834919763,2.64958505,59323.0,59322.0,0.0028987]
[1724834921301,2.31244805,59323.0,59322.0,0.0028987]
[1724834922394,2.64958505,59323.0,59322.0,0.0028987]
[1724834922623,2.31244805,59323.0,59322.0,0.0028987]
[1724834923053,2.64958505,59323.0,59322.0,0.0028987]
[1724834923292,2.31244805,59323.0,59322.0,0.0028987]
[1724834923516,2.64958505,59323.0,59322.0,0.0028987]
[1724834923946,2.31244805,59323.0,59322.0,0.0028987]
[1724834924369,2.14389641,59323.0,59322.0,0.0028987]
[1724834925666,2.48103341,59323.0,59322.0,0.0028987]
[1724834925888,2.14389641,59323.0,59322.0,0.0028987]
[1724834926363,2.48103341,59323.0,59322.0,0.0028987]
[1724834926808,2.14389641,59323.0,59322.0,0.0028987]
[1724834927243,2.31244805,59323.0,59322.0,0.0028987]
[1724834927461,2.64958505,59323.0,59322.0,0.0028987]
[1724834928308,2.72525627,59323.0,59322.0,0.0028987]
[1724834928733,2.72225627,59323.0,59322.0,0.0018987]
[1724834928959,2.72225627,59323.0,59319.0,0.0008998]
[1724834928960,1.522193,59320.0,59319.0,0.0008998]
[1724834929218,0.77537976,59309.0,59308.0,0.0008998]
[1724834929461,1.78702776,59309.0,59308.0,0.0008998]
[1724834929722,2.4245461,59309.0,59308.0,0.0008998]
[1724834929953,2.95675944,59309.0,59308.0,0.0008998]
[1724834930198,3.00716457,59309.0,59308.0,0.0008998]
[1724834930417,3.03236713,59309.0,59308.0,0.0008998]
[1724834930687,2.95675944,59309.0,59308.0,0.0008998]
[1724834931116,3.08287815,59309.0,59308.0,0.0008998]
[1724834931597,3.06750374,59309.0,59308.0,0.0008998]
[1724834931817,3.05750374,59309.0,59308.0,0.0008998]
[1724834932043,1.78038476,59303.0,59302.0,0.0008998]
[1724834932275,2.5520413,59303.0,59302.0,0.0008998]
[1724834932919,2.57849184,59303.0,59302.0,0.0008998]
[1724834933350,2.59949184,59303.0,59302.0,0.0008998]
[1724834934063,2.93674284,59303.0,59302.0,0.0008998]
[1724834934752,2.95745442,59303.0,59302.0,0.0008998]
[1724834935425,2.78382942,59303.0,59302.0,0.0008998]
[1724834935646,2.95245442,59303.0,59302.0,0.0008998]
[1724834937450,0.0776,59299.0,59284.0,0.008987]
[1724834937719,1.10206776,59290.0,59284.0,0.008987]
[1724834937944,2.04510276,59290.0,59284.0,0.008987]
[1724834938165,2.09455594,59290.0,59284.0,0.076487]
[1724834938389,2.10213033,59290.0,59284.0,0.076487]
[1724834938842,2.10213033,59290.0,59284.0,0.008987]
[1724834939066,2.11613033,59290.0,59284.0,0.008987]
[1724834939304,2.10213033,59290.0,59284.0,0.008987]
[1724834939770,2.12413033,59290.0,59284.0,0.008987]
[1724834939997,2.23713226,59290.0,59284.0,0.008987]
[1724834940464,2.22813226,59290.0,59284.0,0.008987]
[1724834940674,2.23413226,59290.0,59284.0,0.008987]
[1724834940906,2.22113226,59290.0,59284.0,0.008987]
[1724834941151,2.23113226,59290.0,59284.0,0.008987]
[1724834941698,2.56845726,59290.0,59284.0,0.008987]
[1724834941923,1.42901467,59290.0,59284.0,0.008987]
[1724834942379,1.76633967,59290.0,59284.0,0.008987]
[1724834942610,1.93500467,59290.0,59284.0,0.008987]
[1724834943069,2.44088131,59290.0,59284.0,0.008987]
[1724834944228,2.27232967,59290.0,59284.0,0.008987]
[1724834944896,2.43092967,59290.0,59289.0,0.009987]
[1724834945338,2.46838537,59290.0,59289.0,0.010987]
[1724834948559,2.32378537,59290.0,59289.0,0.010987]
[1724834949328,2.4010776,59290.0,59289.0,0.010987]
[1724834949567,2.4799776,59290.0,59289.0,0.010987]
[1724834950227,2.40268537,59290.0,59289.0,0.010987]
[1724834950450,2.06536037,59290.0,59289.0,0.010987]
[1724834953138,1.98646037,59290.0,59289.0,0.010987]
[1724834953803,1.62613537,59290.0,59289.0,0.073187]
[1724834954053,1.49967967,59290.0,59289.0,0.073187]
[1724834955432,1.59967967,59290.0,59289.0,0.073187]
[1724834956072,1.26317267,59290.0,59289.0,0.073187]
[1724834956292,1.26317267,59290.0,59289.0,0.153787]
[1724834956515,1.60049767,59290.0,59289.0,0.153787]
[1724834957064,1.62694985,59290.0,59289.0,0.153787]
[1724834958245,0.64058209,59290.0,59289.0,0.1671657]
[1724834958461,0.51412991,59290.0,59289.0,0.151787]
[1724834958670,0.52812991,59290.0,59289.0,0.321452]
[1724834958876,0.51912991,59290.0,59289.0,0.151787]
[1724834959072,0.51412991,59290.0,59289.0,0.151787]
[1724834959279,0.51812991,59290.0,59289.0,0.320452]
[1724834959689,0.51812991,59290.0,59289.0,0.995112]
[1724834959898,0.51812991,59290.0,59289.0,1.000112]
[1724834960107,0.510808,59290.0,59289.0,1.000112]
[1724834960307,0.51856191,59290.0,59289.0,1.000112]
[1724834961576,0.52156191,59290.0,59289.0,1.000112]
[1724834961792,0.51456191,59290.0,59289.0,1.000112]
[1724834962023,0.51556191,59290.0,59289.0,1.011112]
[1724834962672,0.51556191,59290.0,59289.0,0.673782]
[1724834962883,0.51556191,59290.0,59289.0,1.011112]
[1724834963110,0.54301105,59290.0,59289.0,1.013112]
[1724834963359,0.54301105,59290.0,59289.0,0.675782]
[1724834964022,0.66106681,59290.0,59289.0,0.164787]
[1724834964932,0.82972881,59290.0,59289.0,0.164787]
[1724834965820,0.54301105,59290.0,59289.0,0.164787]
[1724834968880,0.51656191,59290.0,59289.0,0.164787]
[1724834969515,0.51656191,59290.0,59289.0,0.333452]
[1724834969747,0.508808,59290.0,59289.0,0.164787]
[1724834969924,0.51660449,59290.0,59289.0,0.164787]
[1724834971762,0.51660449,59290.0,59289.0,0.333452]
[1724834972202,0.54305365,59290.0,59289.0,0.333452]
[1724834972854,0.54305365,59290.0,59289.0,1.013112]
[1724834973290,0.53525716,59290.0,59289.0,1.013112]
[1724834973503,0.54305001,59290.0,59289.0,1.013112]
[1724834975221,0.54305001,59290.0,59289.0,1.350442]
[1724834975626,0.53525716,59290.0,59289.0,1.350442]
[1724834976101,0.54305001,59290.0,59289.0,1.350442]
[1724834978969,0.51660085,59290.0,59289.0,1.350442]
[1724834980905,0.51660085,59290.0,59289.0,1.013112]
[1724834981348,0.508808,59290.0,59289.0,0.670782]
[1724834981567,0.508808,59290.0,59289.0,0.333452]
[1724834981804,0.51789965,59290.0,59289.0,0.333452]
[1724834982011,0.54434932,59290.0,59289.0,0.670782]
[1724834982966,0.54434932,59290.0,59289.0,0.333452]
[1724834984059,0.54434932,59290.0,59289.0,0.670782]
[1724834984714,0.54434932,59290.0,59289.0,0.333452]
[1724834984963,0.54434932,59290.0,59289.0,0.670782]
[1724834985182,0.54412111,59290.0,59289.0,0.670782]
[1724834986301,0.54412111,59290.0,59289.0,0.333452]
[1724834986959,0.54412111,59290.0,59289.0,0.190652]
[1724834988345,0.54412111,59290.0,59289.0,0.021987]
[1724834991453,0.54412111,59290.0,59289.0,0.190652]
[1724834991670,0.54412111,59290.0,59289.0,0.527982]
[1724834991887,0.53502946,59290.0,59289.0,1.060512]
[1724834992118,0.5441283,59290.0,59289.0,1.060512]
[1724834992582,0.5441283,59290.0,59289.0,1.397842]
[1724834992845,0.5441283,59290.0,59289.0,1.402842]
[1724834993052,0.5441283,59290.0,59289.0,1.740172]
[1724834993280,0.53502946,59290.0,59289.0,1.740172]
[1724834993721,0.5441283,59290.0,59289.0,1.740172]
[1724834993952,0.5441283,59290.0,59289.0,2.077502]
[1724834995128,0.5421283,59290.0,59289.0,2.064502]
[1724834995401,0.5441283,59290.0,59289.0,2.077502]
[1724834996170,0.53502946,59290.0,59289.0,2.077502]
[1724835006124,0.53502946,59290.0,59289.0,2.077502]
[1724835015641,0.53502946,59290.0,59289.0,1.740172]
[1724835015898,0.54417363,59290.0,59289.0,1.740172]
[1724835016555,0.54417363,59290.0,59289.0,1.207642]
[1724835016988,0.53502946,59290.0,59289.0,1.207642]
[1724835017195,0.54417363,59290.0,59289.0,1.207642]
[1724835017620,0.54417363,59290.0,59289.0,1.544972]
[1724835017839,0.54417363,59290.0,59289.0,2.190302]
[1724835018050,0.53502946,59290.0,59289.0,2.30845338]
[1724835018540,0.53302946,59290.0,59289.0,2.31845338]
[1724835018963,0.53302946,59290.0,59289.0,2.33245338]
[1724835019175,0.53302946,59290.0,59289.0,2.31845338]
[1724835019613,0.53302946,59290.0,59289.0,2.33245338]
[1724835020240,0.53302946,59290.0,59289.0,2.50968243]
[1724835020440,0.53302946,59290.0,59289.0,2.52368243]
[1724835020857,0.53302946,59290.0,59289.0,2.50968243]
[1724835021267,0.53302946,59290.0,59289.0,2.52368243]
[1724835023626,0.53302946,59290.0,59289.0,2.86101243]
[1724835024457,0.53302946,59290.0,59289.0,2.88160797]
[1724835026798,0.49929646,59290.0,59289.0,2.88160797]
[1724835027039,0.1099,59316.0,59312.0,0.005]
[1724835027215,0.1099,59316.0,59315.0,0.168591]
[1724835027416,0.2009,59322.0,59321.0,0.510722]
[1724835027648,0.061717,59323.0,59322.0,0.847857]
[1724835027816,0.061717,59323.0,59322.0,1.522143]
[1724835028016,0.08815416,59323.0,59322.0,1.522143]
[1724835028942,0.170417,59323.0,59322.0,1.185]
[1724835029139,0.170417,59323.0,59322.0,0.847857]
[1724835029319,0.255117,59323.0,59322.0,0.847857]
[1724835029958,0.255117,59323.0,59322.0,0.861857]
[1724835030359,0.255117,59323.0,59322.0,0.875857]
[1724835030557,0.255117,59323.0,59322.0,0.847857]
[1724835030900,0.26427014,59323.0,59322.0,0.858857]
[1724835031709,0.26427014,59323.0,59322.0,0.521714]
[1724835032075,0.26427014,59323.0,59322.0,0.529714]
[1724835032266,0.26427014,59323.0,59322.0,0.019]
[1724835032465,0.26427014,59323.0,59322.0,0.011]
[1724835032880,0.26427014,59323.0,59322.0,0.187571]
[1724835033004,0.26427014,59323.0,59322.0,0.524714]
[1724835033204,0.26427014,59323.0,59322.0,0.513714]
[1724835033540,0.26427014,59323.0,59322.0,0.524714]
[1724835033746,0.26427014,59323.0,59322.0,0.187571]
[1724835035743,0.26427014,59323.0,59322.0,0.524714]
[1724835036409,0.26427014,59323.0,59322.0,0.861857]
[1724835036640,0.07087014,59323.0,59322.0,1.204]
[1724835036845,0.061717,59323.0,59322.0,1.204]
[1724835037055,0.06961001,59323.0,59322.0,1.204]
[1724835038412,0.061717,59323.0,59322.0,1.293]
[1724835039324,0.061717,59323.0,59322.0,1.630143]
[1724835039960,0.08815131,59323.0,59322.0,1.630143]
[1724835041285,0.061717,59323.0,59322.0,1.630143]
[1724835042807,0.08815122,59323.0,59322.0,1.630143]
[1724835047570,0.470517,59344.0,59322.0,1.630143]
[1724835047571,0.000817,59344.0,59343.0,0.842557]
[1724835048032,0.00872718,59344.0,59343.0,0.842557]
[1724835048251,0.02724369,59344.0,59343.0,0.842557]
[1724835048958,0.000817,59344.0,59343.0,0.845557]
[1724835049835,0.000817,59344.0,59343.0,0.842557]
[1724835050273,0.000817,59344.0,59343.0,0.846557]
[1724835050458,0.000817,59344.0,59343.0,0.842557]
[1724835050688,0.000817,59344.0,59343.0,0.860557]
[1724835053212,0.000817,59344.0,59343.0,0.523534]
[1724835053638,0.112917,59344.0,59343.0,0.523534]
[1724835053858,0.12082718,59344.0,59343.0,0.523534]
[1724835054356,0.12082718,59344.0,59343.0,0.186511]
[1724835054357,0.20652718,59344.0,59343.0,0.186511]
[1724835054594,0.198617,59344.0,59343.0,0.523534]
[1724835054831,0.20599983,59344.0,59343.0,0.186511]
[1724835055067,0.20599983,59344.0,59343.0,0.523534]
[1724835057634,0.20599983,59344.0,59343.0,0.186511]
[1724835058098,0.20599983,59344.0,59343.0,0.523534]
[1724835059229,0.20599983,59344.0,59343.0,0.018]
[1724835059702,1.04854483,59344.0,59343.0,0.018]
[1724835060590,0.168518,59341.0,59337.0,0.168528]
[1724835060811,0.37450883,59344.0,59336.0,0.337058]
[1724835061027,0.00740881,59340.0,59339.0,0.510569]
[1724835061255,0.198617,59344.0,59341.0,0.168515]
[1724835061895,0.2250437,59344.0,59343.0,0.005]
[1724835062304,0.2250437,59344.0,59342.0,0.168513]
[1724835062514,0.3935527,59344.0,59339.0,0.337046]
[1724835062723,0.3935527,59344.0,59341.0,0.171516]
[1724835062724,0.2250437,59344.0,59341.0,0.171516]
[1724835063159,0.2250437,59344.0,59343.0,0.001]
[1724835063391,0.2250437,59344.0,59343.0,0.004]
[1724835063607,0.2250437,59344.0,59343.0,0.003]
[1724835064524,0.2250437,59344.0,59343.0,0.004]
[1724835064933,0.2250437,59344.0,59343.0,0.001]
[1724835065143,0.2250437,59344.0,59343.0,1.046757]
[1724835065144,0.0272437,59344.0,59343.0,1.046757]
[1724835065833,0.0272437,59344.0,59343.0,0.848557]
[1724835066037,0.0272437,59344.0,59343.0,0.851557]
[1724835066448,0.0272437,59344.0,59343.0,0.848557]
[1724835066892,0.0272437,59344.0,59343.0,0.858557]
[1724835067097,0.0272437,59344.0,59343.0,0.866557]
[1724835067773,0.0272437,59344.0,59343.0,1.19858]
[1724835069334,0.0272437,59344.0,59343.0,1.20358]
[1724835071547,0.0272437,59344.0,59343.0,1.19258]
[1724835071961,0.0272437,59344.0,59343.0,1.20358]
[1724835072444,0.0272437,59344.0,59343.0,1.19258]
[1724835072655,0.0272437,59344.0,59343.0,1.20358]
[1724835073912,0.0272437,59344.0,59343.0,1.19558]
[1724835074120,0.0272437,59344.0,59343.0,1.18458]
[1724835074319,0.0272437,59344.0,59343.0,1.19558]
[1724835074521,0.0272437,59344.0,59343.0,1.19758]
[1724835074953,0.0272437,59344.0,59343.0,1.19258]
[1724835075335,0.0272437,59344.0,59343.0,1.20358]
[1724835078192,0.0272437,59344.0,59343.0,1.86420919]
[1724835080317,0.0272437,59344.0,59343.0,1.84520919]
[1724835080533,0.0272437,59344.0,59343.0,1.85920919]
[1724835080744,0.0272437,59344.0,59343.0,1.87320919]
[1724835080953,0.0272437,59344.0,59343.0,1.85920919]
[1724835081136,0.0272437,59344.0,59343.0,1.84520919]
[1724835081307,0.0272437,59344.0,59343.0,1.87320919]
[1724835082075,0.000817,59344.0,59343.0,1.87320919]
[1724835084096,0.000817,59344.0,59343.0,1.755203]
[1724835086307,0.02723822,59344.0,59343.0,1.755203]
[1724835086535,0.02723822,59344.0,59343.0,2.092226]
[1724835086747,0.02723822,59344.0,59343.0,1.755203]
[1724835086975,0.02723822,59344.0,59343.0,2.092226]
[1724835087220,2.2e-07,59345.0,59344.0,1.184563]
[1724835087465,2.2e-07,59345.0,59344.0,1.513263]
[1724835087695,2.2e-07,59345.0,59344.0,2.29043822]
[1724835087943,2.2e-07,59345.0,59344.0,2.62745622]
[1724835088157,2.2e-07,59350.0,59349.0,0.6829413]
[1724835088374,2.2e-07,59350.0,59349.0,1.43336226]
[1724835088596,2.2e-07,59350.0,59349.0,2.6557421]
[1724835088833,2.2e-07,59350.0,59349.0,3.25519937]
[1724835089048,2.2e-07,59350.0,59349.0,3.25519284]
[1724835089513,2.2e-07,59350.0,59349.0,2.88131826]
[1724835089741,2.2e-07,59350.0,59349.0,2.95577194]
[1724835090432,2.2e-07,59350.0,59349.0,2.94493831]
[1724835090660,2.2e-07,59350.0,59349.0,2.89531826]
[1724835091335,2.2e-07,59350.0,59349.0,2.90931826]
[1724835091597,2.2e-07,59350.0,59349.0,2.95890826]
[1724835092043,0.00817,59368.0,59358.0,1.858159]
[1724835092044,1e-06,59359.0,59358.0,1.858159]
[1724835092274,1e-06,59359.0,59358.0,2.87118726]
[1724835093310,1e-06,59359.0,59358.0,2.8177443]
[1724835093515,1e-06,59359.0,59358.0,2.87118726]
[1724835093973,1e-06,59361.0,59360.0,2.400825]
[1724835094235,1e-06,59361.0,59360.0,2.57726796]
[1724835094665,1e-06,59361.0,59360.0,2.523825]
[1724835094902,1e-06,59361.0,59360.0,2.186898]
[1724835095154,1e-06,59361.0,59360.0,1.826971]
[1724835096329,1e-06,59361.0,59360.0,1.840971]
[1724835096546,1e-06,59361.0,59360.0,1.854971]
[1724835097661,1e-06,59361.0,59360.0,2.191898]
[1724835097936,1e-06,59361.0,59360.0,2.214898]
[1724835098364,1e-06,59361.0,59360.0,1.877971]
[1724835098809,0.09304665,59378.0,59377.0,0.842075]
[1724835099270,0.1005439,59378.0,59377.0,0.842075]
[1724835099489,0.1005439,59378.0,59377.0,0.505245]
[1724835099490,0.09304665,59378.0,59377.0,0.505245]
[1724835099718,0.1005439,59378.0,59377.0,0.505245]
[1724835099941,0.09304665,59378.0,59377.0,0.505245]
[1724835100166,0.1005439,59378.0,59377.0,0.527245]
[1724835100415,0.09304665,59378.0,59377.0,0.527245]
[1724835100862,0.1005439,59378.0,59377.0,0.527245]
[1724835101538,0.12695278,59378.0,59377.0,0.532245]
[1724835101764,0.12695278,59378.0,59377.0,0.869075]
[1724835102194,0.11945553,59378.0,59377.0,0.869075]
[1724835102424,0.02640888,59378.0,59377.0,0.869075]
[1724835102913,0.02640888,59378.0,59377.0,0.532245]
[1724835102914,0.14500888,59378.0,59377.0,0.532245]
[1724835103153,0.14500888,59378.0,59377.0,0.195415]
[1724835103380,0.15250613,59378.0,59377.0,0.195415]
[1724835103846,0.15250613,59378.0,59377.0,0.532245]
[1724835104539,0.15250613,59378.0,59377.0,0.869075]
[1724835104762,0.03390613,59378.0,59377.0,0.869075]
[1724835105224,0.02640888,59378.0,59377.0,0.869075]
[1724835106136,0.03390613,59378.0,59377.0,0.869075]
[1724835108331,0.02640888,59378.0,59377.0,0.869075]
[1724835108784,0.03392922,59378.0,59377.0,0.869075]
[1724835109253,0.03392922,59378.0,59377.0,0.195415]
[1724835109514,0.15482922,59378.0,59377.0,0.532245]
[1724835109966,0.15482922,59378.0,59377.0,0.195415]
[1724835110204,0.15482922,59378.0,59377.0,0.5331437]
[1724835110418,0.15564622,59378.0,59377.0,0.5331437]
[1724835110671,0.15564622,59378.0,59377.0,0.0228987]
[1724835110856,0.25154622,59378.0,59377.0,0.0228987]
[1724835111363,0.25154622,59378.0,59377.0,0.1913137]
[1724835113398,0.25154622,59378.0,59377.0,0.8649737]
[1724835113608,0.25154622,59378.0,59377.0,0.1913137]
[1724835113854,0.25154622,59378.0,59377.0,0.5281437]
[1724835114065,0.03474622,59378.0,59377.0,0.5281437]
[1724835114291,0.03474622,59378.0,59377.0,0.8649737]
[1724835114513,0.03474622,59378.0,59377.0,0.5281437]
[1724835115162,0.03474622,59378.0,59377.0,0.8699737]
[1724835115618,0.02722588,59378.0,59377.0,0.8699737]
[1724835116540,0.0347485,59378.0,59377.0,0.8699737]
[1724835116760,0.02722588,59378.0,59377.0,0.8699737]
[1724835117688,0.0347485,59378.0,59377.0,0.8699737]
[1724835117885,0.02722588,59378.0,59377.0,0.8699737]
[1724835120623,0.02722588,59378.0,59377.0,1.2068037]
[1724835120886,0.02722588,59378.0,59377.0,0.8699737]
[1724835121078,0.2420485,59378.0,59377.0,0.5281437]
[1724835123007,0.2420485,59378.0,59377.0,0.0228987]
[1724835123245,0.7472855,59378.0,59377.0,0.0228987]
[1724835124161,0.4104605,59378.0,59377.0,0.0228987]
[1724835124872,0.2420485,59378.0,59377.0,0.0228987]
[1724835125545,0.2420485,59378.0,59377.0,0.5281437]
[1724835126653,0.2420485,59378.0,59377.0,0.1913137]
[1724835127299,0.2420485,59378.0,59377.0,0.5281437]
[1724835128164,0.23452588,59378.0,59377.0,0.5281437]
[1724835128604,0.24204918,59378.0,59377.0,0.5281437]
[1724835130160,0.03474918,59378.0,59377.0,0.5281437]
[1724835131413,0.03474918,59378.0,59377.0,0.1913137]
[1724835131622,0.03474918,59378.0,59377.0,0.5281437]
[1724835132233,0.03474918,59378.0,59377.0,0.53055337]
[1724835132657,0.03474918,59378.0,59377.0,0.53055336]
[1724835132859,0.03474918,59378.0,59377.0,0.19372336]
[1724835133059,0.03474918,59378.0,59377.0,0.02530836]
[1724835133260,1.09261118,59378.0,59377.0,0.02530836]
[1724835133529,0.75578618,59378.0,59377.0,0.02530836]
[1724835135851,0.41896118,59378.0,59377.0,0.02530836]
[1724835136058,0.41896118,59378.0,59377.0,0.02530835]
[1724835137618,0.75578618,59378.0,59377.0,0.02530835]
[1724835140055,0.87369782,59378.0,59377.0,0.02530835]
[1724835140482,0.41896118,59378.0,59377.0,0.02530835]
[1724835142406,0.75578618,59378.0,59377.0,0.02530835]
[1724835144145,0.03474918,59378.0,59377.0,0.02530835]
[1724835144628,0.03474918,59378.0,59377.0,0.53055335]
[1724835145044,0.03474918,59378.0,59377.0,0.53055334]
[1724835145356,0.03474918,59378.0,59377.0,0.53055333]
[1724835145815,0.03474918,59378.0,59377.0,0.53055332]
[1724835146025,0.03474918,59378.0,59377.0,0.86738332]
[1724835146244,0.03474918,59378.0,59377.0,0.86738331]
[1724835146463,0.03474918,59378.0,59377.0,0.86738329]
[1724835146946,0.02722588,59378.0,59377.0,0.53055328]
[1724835147165,0.02722588,59378.0,59377.0,0.86738328]
[1724835147375,0.03475032,59378.0,59377.0,0.86738328]
[1724835147577,0.03475032,59378.0,59377.0,0.53055327]
[1724835147994,0.03475032,59378.0,59377.0,0.86738327]
[1724835148203,0.03475032,59378.0,59377.0,0.53055327]
[1724835148424,0.02722588,59378.0,59377.0,0.53055327]
[1724835148635,0.03475032,59378.0,59377.0,0.53055326]
[1724835149774,0.03475032,59378.0,59377.0,0.53055325]
[1724835151115,0.03475032,59378.0,59377.0,0.53055324]
[1724835151332,0.03475032,59378.0,59377.0,1.08588324]
[1724835151545,0.03475032,59378.0,59377.0,1.08588322]
[1724835151789,0.02722588,59378.0,59377.0,1.08588321]
[1724835152006,0.02722588,59378.0,59377.0,1.4227132]
[1724835152227,0.02722588,59378.0,59377.0,1.0858832]
[1724835152444,0.02722588,59378.0,59377.0,1.08588319]
[1724835152654,0.02722588,59378.0,59377.0,1.08588318]
[1724835152861,0.02722588,59378.0,59377.0,1.08588317]
[1724835153294,0.02722588,59378.0,59377.0,0.87238317]
[1724835153507,0.02722588,59378.0,59377.0,0.87238316]
[1724835153725,0.03475032,59378.0,59377.0,0.87238316]
[1724835153940,0.03475032,59378.0,59377.0,1.20921316]
[1724835154154,0.03475032,59378.0,59377.0,0.98698315]
[1724835154407,0.02722588,59378.0,59377.0,0.98698314]
[1724835154861,0.02722588,59378.0,59377.0,1.32381313]
[1724835155083,0.02722588,59378.0,59377.0,0.98698313]
[1724835155296,0.02722588,59378.0,59377.0,0.98698312]
[1724835155700,0.02722588,59378.0,59377.0,0.98698311]
[1724835156451,0.02722588,59378.0,59377.0,0.8723831]
[1724835156672,0.02722588,59378.0,59377.0,0.87238309]
[1724835157379,0.02722588,59378.0,59377.0,0.87238308]
[1724835157816,0.02722588,59378.0,59377.0,0.87238307]
[1724835158475,0.02722588,59378.0,59377.0,0.87238306]
[1724835158694,0.02722588,59378.0,59377.0,0.87238305]
[1724835159138,0.02722588,59378.0,59377.0,0.87238304]
[1724835159375,0.02722588,59378.0,59377.0,0.87238303]
[1724835159578,0.03475032,59378.0,59377.0,0.87238303]
[1724835159988,0.02722588,59378.0,59377.0,0.87238303]
[1724835160226,0.02722588,59378.0,59377.0,0.87238302]
[1724835160896,0.02722588,59378.0,59377.0,0.53555302]
[1724835161104,0.02722588,59378.0,59377.0,0.53055302]
[1724835161316,0.03476041,59378.0,59377.0,0.53055301]